[Event "European Women-ch 2023"]
[Site "Petrovac"]
[Date "2023.03.23"]
[Round "6.4"]
[White "Pavlidou, Ekaterini"]
[Black "Dylag, Emilia"]
[Result "0-1"]
[ECO "E52"]
[WhiteElo "2178"]
[BlackElo "2052"]
[Annotator "TA"]
[PlyCount "126"]
[EventDate "2023.03.15"]
[EventType "swiss"]
[EventCountry "MNE"]
[SourceTitle "playchess.com"]
[Source "ChessBase"]
[SourceQuality "1"]
[TimeControl "40/5400+30:1800+30"]

{[%evp 17,126,20,20,10,27,33,45,21,29,13,28,0,-8,-48,-19,-52,-48,-49,-37,-46,-27,-43,-39,-31,0,24,62,65,180,148,146,47,58,19,128,124,128,125,124,0,114,-13,-15,-19,-8,-8,0,0,0,-19,31,0,0,0,0,0,0,0,0,0,0,0,0,0,156,0,0,0,0,0,0,-157,-145,-537,-312,-252,0,0,0,0,0,0,0,0,0,0,0,0,0,-300,-193,-215,-169,-29975,-29976,-29985,-29986,-29986,-29987,-29987,-29974,-29968,-29967,-29974,-29975,-29982,-29983,-29982,-29979,-29979,-29978]} 1. d4 {[%emt 0:00:19]} Nf6 {[%emt 0:00:08]} 2. c4 {[%emt 0:00:09]} e6 {[%emt 0:00:08]} 3. Nc3 {[%emt 0:00:33]} Bb4 {[%emt 0:00:16]} 4. e3 {[%emt 0:00:11]} O-O {[%emt 0:00:27]} 5. Bd3 {[%emt 0:01:57]} d5 {[%emt 0:00:27]} 6. Nf3 {[%emt 0:02:28]} b6 {[%emt 0:01:50]} 7. cxd5 {[%emt 0:00:33]} exd5 {[%emt 0:00:08]} 8. Bd2 {[%emt 0:00:11]} a6 {[%emt 0:01:33]} 9. O-O {[%emt 0:02:10]} Bb7 {[%emt 0:00:23]} 10. Ne5 {[%emt 0:02:23] E52: Nimzo-Indian: Rubinstein: 4...0-0 5 Nf3 d5 6 Bd3 b6.} Bd6 {[%emt 0:00:29]} 11. f4 {[%emt 0:00:18]} c5 {[%emt 0:00:31]} 12. Be1 {[%emt 0:10:03] White is slightly better.} Nc6 {[%emt 0:06:51]} 13. Bh4 {[%emt 0:11:37] Strongly threatening Nxd5.} Be7 {[%emt 0:03:53][%cal Bd6e7,Be7f6,Bf6g7][%mdl 32] [#]} 14. Bxf6 $146 {[%emt 0:02:13][%mdl 64] Remove Defender} ({Predecessor:} 14. Qf3 cxd4 15. Nxc6 Bxc6 16. exd4 Ne4 17. Bxe7 Qxe7 18. Bxe4 dxe4 19. Qe3 f5 20. d5 {0-1 Yedidia,D (2001)-Shapiro,D (2284) Titled Tuesday intern op 07th Jun Late blitz 2022 (1)}) 14... Bxf6 {[%emt 0:00:52]} 15. Ne2 {[%emt 0:00:51]} (15. Qh5 g6 16. Qd1 Bg7 $15) 15... c4 {[%emt 0:05:18]} 16. Bf5 {[%emt 0:01:35]} g6 {[%emt 0:04:38]} 17. Bc2 {[%emt 0:06:10]} Bg7 {[%emt 0:01:16]} 18. Qe1 {[%emt 0:04:07]} b5 {[%emt 0:08:16]} 19. Qg3 {[%emt 0:06:04]} Qe7 {[%emt 0:12:44]} 20. a3 {[%emt 0:02:39]} Rfe8 {[%emt 0:03:58]} (20... Nxe5 $15 21. fxe5 f6 22. exf6 Rxf6) 21. Rf3 $11 {[%emt 0:00:56]} Nd8 {[%emt 0:18:14]} 22. h4 {[%emt 0:02:30][%cal Bh2h4,Bh4h5][%mdl 32]} a5 {[%emt 0:12:36] [#]} ({Black should play} 22... f6 $14) 23. h5 $1 $18 {[%emt 0:02:54][%cal Rh5g6][%mdl 512]} Ra6 {[%emt 0:00:35]} 24. Qh3 {[%emt 0:03:02]} (24. hxg6 $16 fxg6 25. Nc3) 24... Ne6 {[%emt 0:02:04]} 25. Rg3 {[%emt 0:06:27][%cal Rh5g6] next hxg6 is good for White.} Nf8 {[%emt 0:01:06]} (25... Bc8 $1 $11 {keeps the balance.} 26. hxg6 fxg6) 26. hxg6 $1 $16 {[%emt 0:03:30]} fxg6 {[%emt 0:01:10]} 27. Rf1 {[%emt 0:02:25]} Bc8 {[%emt 0:01:53]} 28. Qh2 {[%emt 0:01:15]} ({White should try} 28. f5 $1 $16) 28... Rd6 {[%emt 0:04:45]} (28... b4 $11) 29. Nc3 {[%emt 0:03:24] Excellent horsemanship.} (29. f5 $1 $16 {[%cal Rf5g6]} Bxe5 30. dxe5 Qxe5 31. fxg6 hxg6 32. Nf4 (32. Qh6 Qg7 $11)) 29... b4 $11 {[%emt 0:02:41]} 30. Na4 {[%emt 0:00:49]} Rf6 {[%emt 0:05:09]} 31. Nc5 $132 {[%emt 0:01:14][%mdl 2048] White is not keeping still} Bf5 {[%emt 0:00:51]} 32. Bxf5 {[%emt 0:02:05]} Rxf5 {[%emt 0:00:13]} 33. Rgf3 {[%emt 0:02:42]} bxa3 {[%emt 0:00:39]} (33... Ne6 $11 34. Nxe6 Qxe6) 34. bxa3 {[%emt 0:00:03]} (34. g4 $5 {[%cal Rg4f5]} Rf6 35. bxa3 $11) 34... Ne6 {[%emt 0:00:52]} 35. g4 {[%emt 0:01:42]} Rxe5 {[%emt 0:00:31]} 36. fxe5 {[%emt 0:00:20][%cal Of3f7]} Nxc5 {[%emt 0:00:04]} 37. Rf7 {[%emt 0:01:58][%mdl 64] Deflection} Qe6 {[%emt 0:00:52] Hoping for ...Ne4.} (37... Qxf7 $2 38. Rxf7 Kxf7 39. dxc5 $18) 38. dxc5 {[%emt 0:00:30]} d4 {[%emt 0:00:34]} 39. exd4 {[%emt 0:13:05]} Qxg4+ {[%emt 0:00:07]} 40. Kh1 {[%emt 0:00:00]} Qe4+ {[%emt 0:00:00] [#]} (40... Qxd4 $11 41. e6 Qe4+ 42. Qg2 (42. R1f3 c3 $15) 42... Qxe6) 41. R1f3 $2 {[%emt 0:02:59]} (41. R7f3 $1 $16 {aiming for Qf4.} Qxd4 42. Qf4) 41... Qxd4 {[%emt 0:13:51]} 42. e6 {[%emt 0:09:17]} Qd1+ {[%emt 0:03:15]} 43. Qg1 {[%emt 0:00:01]} Qd5 {[%emt 0:06:36]} 44. Qb1 $2 {[%emt 0:08:28]} (44. Qh2 Qxe6 45. Qd6 c3 $15) (44. c6 $11) 44... Qxe6 {[%emt 0:04:20]} 45. Qb7 {[%emt 0:01:42][%mdl 8192] Repels Qd5} (45. c6 $17) 45... Qe1+ {[%emt 0:00:54]} 46. Kg2 {[%emt 0:00:23]} Qd2+ $2 {[%emt 0:00:43]} (46... Qe2+ $19 47. Kh3 (47. Kg3 $2 Be5+ 48. R7f4 Rf8 $19 {[%mdl 64] Pin}) 47... Be5) 47. Kh3 {[%emt 0:02:01]} Qh6+ {[%emt 0:01:41]} (47... Be5 {gets mated.} 48. Rg7+ (48. Rxh7 $2 {too greedy.} Qh2+ {[%mdl 64] Skewer} 49. Kg4 Qg2+ 50. Kh4 Bf6+ 51. Rxf6 Re4+ $19) 48... Bxg7 49. Qf7+ Kh8 50. Qxe8+) 48. Kg2 {[%emt 0:00:29]} Qg5+ {[%emt 0:01:28]} 49. Kf1 {[%emt 0:03:38]} Qc1+ {[%emt 0:02:16]} 50. Kg2 {[%emt 0:00:05]} Qg5+ {[%emt 0:00:17]} 51. Kf1 {[%emt 0:01:41]} Qe5 {[%emt 0:00:48] ...Qe2+ is the strong threat.} 52. Rf2 {[%emt 0:00:21] Prevents Qe2+.} c3 {[%emt 0:00:40] The board is on fire.} 53. Qb3 $2 {[%emt 0:00:39][%mdl 8192]} ({Much worse is} 53. Rxg7+ Qxg7 54. Qd5+ Kh8 $17) (53. Qd7 $1 $11 {and White is okay.} Qe1+ 54. Kg2 Qe4+ 55. R2f3 Qe2+ 56. Rf2 Qe4+ 57. R2f3) 53... Kh8 {[%emt 0:00:23] And now ...Qh5 would win.} (53... Qxc5 $2 54. Rf8#) 54. Qc4 {[%emt 0:00:58] [#] Black must now prevent Re2.} Rd8 $1 {[%emt 0:00:38] Threatens to win with ...Rd1+.} 55. Re2 $2 {[%emt 0:05:40]} (55. R7f4 $19) 55... Rd1+ {[%emt 0:00:34] Black mates.} 56. Kf2 {[%emt 0:01:02]} Qh2+ {[%emt 0:00:05]} 57. Kf3 {[%emt 0:00:53]} Qh3+ {[%emt 0:00:47]} 58. Ke4 {[%emt 0:00:42]} Qg4+ {[%emt 0:00:39]} 59. Rf4 {[%emt 0:00:11]} Qd7 {[%emt 0:00:27]} 60. c6 {[%emt 0:01:21]} Rd4+ {[%emt 0:00:26]} 61. Ke3 {[%emt 0:00:28]} Qh3+ {[%emt 0:00:32]} 62. Rf3 {[%emt 0:00:34]} Qxf3+ {[%emt 0:00:13]} 63. Kxf3 {[%emt 0:00:05]} Rxc4 {[%emt 0:00:04] A wild game. A cool game by Dylag.   Weighted Error Value: White=0.41/Black=0.30} 0-1

[Event "European Women-ch 2023"]
[Site "Petrovac"]
[Date "2023.03.23"]
[Round "6.5"]
[White "Mkrtchian, Lilit"]
[Black "Danielian, Elina"]
[Result "1/2-1/2"]
[ECO "D79"]
[WhiteElo "2379"]
[BlackElo "2431"]
[Annotator "TA"]
[PlyCount "26"]
[EventDate "2023.03.15"]
[EventType "swiss"]
[EventCountry "MNE"]
[SourceTitle "playchess.com"]
[Source "ChessBase"]
[SourceQuality "1"]
[TimeControl "40/5400+30:1800+30"]

{[%evp 16,26,0,0,0,0,0,0,0,0,0,0,0]} 1. Nf3 {[%emt 0:00:15]} d5 {[%emt 0:00:23]} 2. g3 {[%emt 0:00:24]} Nf6 {[%emt 0:00:20]} 3. Bg2 {[%emt 0:00:27]} g6 {[%emt 0:00:55]} 4. O-O {[%emt 0:00:32]} Bg7 {[%emt 0:00:19]} 5. d4 {[%emt 0:00:41]} O-O {[%emt 0:00:28]} 6. c4 {[%emt 0:00:36]} c6 {[%emt 0:00:42]} 7. cxd5 {[%emt 0:00:53]} cxd5 {[%emt 0:00:16]} 8. Qb3 {[%emt 0:00:36]} Nc6 {[%emt 0:01:26][%cal Bb8c6,Bc6a5,Ba5c4][%mdl 32]} 9. Nc3 {[%emt 0:00:55] The position is equal.} Na5 {[%emt 0:00:51] [#] D79: Fianchetto Grünfeld: Symmetrical Variation (6 0-0 c6 7 cxd5 cxd5).} 10. Qa3 $146 {[%emt 0:01:00]} ({Predecessor:} 10. Qb5 Bd7 11. Qd3 Rc8 12. Ne5 Bf5 13. Qd1 Nc4 14. h3 h5 15. Nxc4 Rxc4 16. Qb3 b6 17. e4 Rxc3 18. bxc3 Nxe4 19. Re1 Qd7 20. Bf4 {1-0 Kosteniuk,A (2521)-Shuvalova,P (2498) Chess.com Rapid Wk20 Swiss 2022 (4)}) 10... Nc4 {[%emt 0:00:45] Repels Ne5} 11. Qb3 {[%emt 0:00:27]} Na5 {[%emt 0:00:34]} 12. Qa3 {[%emt 0:00:33]} Nc4 {[%emt 0:00:36] Prevents Ne5.} 13. Qb3 {[%emt 0:00:13]} Na5 {[%emt 0:00:06] An uneventful encounter.   Weighted Error Value: White=0.00 (flawless) /Black=0.00 (flawless)} 1/2-1/2

[Event "European Women-ch 2023"]
[Site "Petrovac"]
[Date "2023.03.23"]
[Round "6.5"]
[White "Olde, Margareth"]
[Black "Melia, Salome"]
[Result "0-1"]
[ECO "A61"]
[WhiteElo "2234"]
[BlackElo "2366"]
[Annotator "TA"]
[PlyCount "134"]
[EventDate "2023.03.15"]
[EventType "swiss"]
[EventCountry "MNE"]
[SourceTitle "playchess.com"]
[Source "ChessBase"]
[SourceQuality "1"]
[TimeControl "40/5400+30:1800+30"]

{[%evp 13,134,47,35,19,12,24,49,0,0,9,0,-27,-39,-28,-28,-33,1,0,4,-11,13,-1,35,38,90,-18,-9,-6,0,-127,-88,-91,-85,-143,-132,-142,-147,-201,-200,-209,-206,-231,-229,-233,-192,-143,-154,-206,-108,-239,-236,-233,-92,-66,-16,-20,-39,-28,-9,-8,-20,-272,-254,-658,-626,-628,-587,-575,-530,-828,-727,-29949,-29953,-29952,-29951,-29954,-29956,-29956,-29957,-29949,-29951,-29958,-29961,-29959,-29960,-29960,-29958,-29963,-29960,-29967,-29964,-29971,-29973,-29972,-29973,-29977,-29978,-29980,-29981,-29981,-29979,-29978,-29979,-29981,-29981,-29981,-29980,-29980,-29981,-29981,-29979,-29979,-29979,-29984,-29985,-29985,-29986,-29986,-29983,-29983,-29984,-29984,-29985]} 1. d4 {[%emt 0:00:02]} Nf6 {[%emt 0:00:06]} 2. c4 {[%emt 0:00:06]} e6 {[%emt 0:00:04]} 3. Nf3 {[%emt 0:00:07]} c5 {[%emt 0:00:20]} 4. d5 {[%emt 0:00:36]} d6 {[%emt 0:00:11]} 5. Nc3 {[%emt 0:00:33]} exd5 {[%emt 0:00:05]} 6. cxd5 {[%emt 0:00:11]} g6 {[%emt 0:00:04]} 7. Bf4 {[%emt 0:00:25]} Bg7 {[%emt 0:00:12]} 8. h3 {[%emt 0:00:20]} O-O {[%emt 0:00:44][%cal Ob7b5,Bh8f8,Bf8e8,Be8e4][%mdl 32]} 9. e3 {[%emt 0:00:09]} Re8 {[%emt 0:00:20]} 10. Bd3 {[%emt 0:02:54] Inhibits Ne4. White is slightly better.} Na6 {[%emt 0:00:59]} 11. O-O $1 {[%emt 0:06:02]} Nc7 {[%emt 0:00:09]} 12. Bc4 {[%emt 0:18:22]} Ne4 {[%emt 0:07:50]} 13. Nxe4 {[%emt 0:05:48]} Rxe4 {[%emt 0:01:08]} 14. Qc2 {[%emt 0:03:28]} Re8 {[%emt 0:02:39]} (14... b5 $5 15. Bd3 (15. Qxe4 Bf5 $17) 15... Re8 $15) 15. a4 $1 {[%emt 0:03:15]} Bf5 {[%emt 0:01:28]} 16. Qb3 {[%emt 0:01:51]} Rb8 {[%emt 0:00:39]} 17. Rfe1 {[%emt 0:03:43]} Na6 {[%emt 0:14:33]} (17... b6 $5 {[%cal Ra7a6]}) 18. Nd2 {[%emt 0:05:05] Hoping for e4.} Qf6 {[%emt 0:10:16]} ({Better is} 18... Nb4 $14) 19. Bg3 {[%emt 0:05:59]} (19. e4 $1 $16 {[%cal Re4f5]} Bd7 20. Qg3) 19... Qxb2 $11 {[%emt 0:09:17]} 20. Qxb2 {[%emt 0:01:54]} Bxb2 {[%emt 0:00:03]} 21. Bxd6 {[%emt 0:13:34]} (21. Bb5 $11) 21... Bxa1 {[%emt 0:04:24]} 22. Rxa1 {[%emt 0:00:06]} Rbd8 {[%emt 0:00:25]} 23. Bg3 {[%emt 0:02:08]} ({White should play} 23. Bf4) 23... Nb4 $17 {[%emt 0:01:11]} 24. d6 {[%emt 0:01:59]} Bd3 {[%emt 0:03:12]} 25. a5 {[%emt 0:08:20]} (25. Bb5 $17) 25... Bxc4 $19 {[%emt 0:03:12]} 26. Nxc4 {[%emt 0:00:03]} f6 {[%emt 0:00:14]} 27. Rd1 {[%emt 0:03:19]} Rd7 {[%emt 0:00:50]} 28. f3 {[%emt 0:00:55]} Rc8 {[%emt 0:05:46]} 29. e4 {[%emt 0:02:59]} Nc6 {[%emt 0:03:52]} 30. f4 {[%emt 0:01:04]} (30. e5 $17 Nxe5 31. Bxe5 fxe5 32. Kf2 (32. Nxe5 Rdd8 $17)) 30... Nd4 {[%emt 0:04:46]} (30... Kf7 $19 31. Kh2 Rb8) 31. Rd2 {[%emt 0:01:38]} (31. e5 $17) 31... Re8 {[%emt 0:04:38]} 32. e5 {[%emt 0:00:55]} g5 {[%emt 0:00:51]} (32... fxe5 $19 {is more deadly.} 33. fxe5 Kf7) 33. fxg5 $17 {[%emt 0:05:51]} fxe5 {[%emt 0:00:13]} (33... fxg5 $15 34. Ne3 Rc8) 34. Bxe5 $11 {[%emt 0:00:50]} Nc6 {[%emt 0:03:12]} 35. Rd5 {[%emt 0:02:42]} b5 {[%emt 0:08:29]} (35... Nb4 $5 {[%cal Rb4d5]} 36. Rxc5 Nd3 $15) 36. axb6 {[%emt 0:00:05]} axb6 {[%emt 0:00:02]} 37. Nxb6 {[%emt 0:00:57][%mdl 8192] White is on the road to losing.} (37. Bg3 $11 {and White stays safe.}) 37... Nxe5 $19 {[%emt 0:02:33]} (37... Rxe5 38. Nxd7 Rxd5 39. Nf6+ Kf7 40. Nxd5 $18) 38. Rxe5 $2 {[%emt 0:00:06]} (38. Nxd7 Nxd7 39. Kf2) 38... Rxe5 {[%emt 0:00:04]} 39. Nxd7 {[%emt 0:00:03]} Rxg5 $11 {[%emt 0:00:55][%mdl 4096] Endgame KR-KN} 40. h4 {[%emt 0:00:00]} Rf5 {[%emt 0:00:00] Inhibits Nf6+. Strongly threatening ...c4.} (40... Rg6 41. Nxc5 Rxd6 42. Kf2 $17) 41. g4 {[%emt 0:09:08]} Rf4 {[%emt 0:06:52]} 42. Nxc5 {[%emt 0:07:42]} Rxg4+ {[%emt 0:00:18] Black mates.} 43. Kf2 {[%emt 0:00:06]} Kf7 {[%emt 0:05:58]} (43... Rxh4 44. d7 Rf4+ 45. Ke3 $11) 44. d7 {[%emt 0:01:00] [#]} Rd4 $1 {[%emt 0:02:14]} ({Not} 44... Rxh4 45. d8=Q (45. d8=R h5 $11) 45... Rb4 46. Qd7+ Kf6 47. Qe6+ Kg7 48. Qd7+ Kf6 49. Qxh7) (44... Ke7 45. Ne6 Kxd7 46. Nf8+ Kc6 47. Nxh7 $15) 45. Ke3 {[%emt 0:00:46] [#]} Rd6 $1 {[%emt 0:02:02]} ({Much less strong is} 45... Rxh4 46. d8=Q (46. d8=R h5 $11) 46... Rh5 47. Ne4 h6 48. Qf6+ Kg8 49. Qg6+ Kf8 50. Qxh5) 46. Kf4 {[%emt 0:00:28]} Ke7 {[%emt 0:00:44]} 47. Ne4 {[%emt 0:01:09]} Rxd7 {[%emt 0:01:17]} 48. Kg5 {[%emt 0:01:05]} Rd5+ {[%emt 0:02:13]} 49. Kg4 {[%emt 0:01:27]} Kf7 {[%emt 0:00:45]} 50. Ng5+ {[%emt 0:00:38]} Kg7 {[%emt 0:00:24]} 51. Ne4 {[%emt 0:07:01]} Rd4 {[%emt 0:03:01]} 52. Kf4 {[%emt 0:00:37]} Kg6 {[%emt 0:00:47]} 53. Kf3 {[%emt 0:02:29]} Ra4 {[%emt 0:02:16]} 54. Nf2 {[%emt 0:02:43]} Rxh4 {[%emt 0:00:07]} 55. Kg3 {[%emt 0:00:09]} Ra4 {[%emt 0:00:07]} 56. Nh3 {[%emt 0:00:05]} Rb4 {[%emt 0:03:31]} 57. Nf4+ {[%emt 0:00:32]} Kg5 {[%emt 0:00:22]} 58. Nh3+ {[%emt 0:00:19]} Kf5 {[%emt 0:00:08]} 59. Nf2 {[%emt 0:00:20]} Rb3+ {[%emt 0:00:50]} 60. Kh4 {[%emt 0:00:27]} h6 {[%emt 0:02:08]} 61. Nh3 {[%emt 0:00:24]} Ra3 {[%emt 0:05:18]} 62. Nf2 {[%emt 0:00:30]} Kf4 {[%emt 0:03:08]} 63. Nh3+ {[%emt 0:00:29]} Kf3 {[%emt 0:00:17]} 64. Ng1+ {[%emt 0:01:08]} Kg2 {[%emt 0:00:44]} 65. Ne2 {[%emt 0:00:04]} Ra4+ {[%emt 0:01:02]} 66. Kh5 {[%emt 0:00:03]} Rc4 {[%emt 0:00:15]} 67. Kxh6 {[%emt 0:00:32]} Kf2 {[%emt 0:00:12] Weighted Error Value: White=0.41/Black=0.12 (very precise)} 0-1

[Event "European Women-ch 2023"]
[Site "Petrovac"]
[Date "2023.03.23"]
[Round "6.5"]
[White "Skvortsova, Alena"]
[Black "Lach, Aleksandra"]
[Result "0-1"]
[ECO "B12"]
[WhiteElo "2032"]
[BlackElo "2170"]
[Annotator "TA"]
[PlyCount "126"]
[EventDate "2023.03.15"]
[EventType "swiss"]
[EventCountry "MNE"]
[SourceTitle "playchess.com"]
[Source "ChessBase"]
[SourceQuality "1"]
[TimeControl "40/5400+30:1800+30"]

{[%evp 9,126,13,27,19,26,10,31,33,22,31,31,27,31,7,13,11,23,0,4,0,0,-12,-4,-28,41,0,68,0,137,146,152,139,233,-40,-27,-74,-16,-13,-14,-76,-91,-331,-215,-208,-210,-185,-178,-476,-313,-316,-285,-339,-364,-359,-362,-354,-340,-335,-323,-389,-389,-702,-689,-875,-498,-1162,-1156,-1159,-1163,-1130,-871,-1093,-654,-633,-648,-602,-342,-296,-261,-269,-103,-102,-107,-99,0,0,0,0,0,-352,-336,-325,-320,-316,-300,-29993,-29994,-29994,-29995,-29995,-29982,-29982,-29983,-29983,-29984,-29984,-29985,-29985,-29983,-29997,-29970,-29970,-29969,-29970,-29968,-29970,-29971,-29966,-29963]} 1. e4 {[%emt 0:00:03]} c6 {[%emt 0:00:42]} 2. d4 {[%emt 0:00:08]} d5 {[%emt 0:00:09]} 3. e5 {[%emt 0:00:08]} Bf5 {[%emt 0:00:24]} 4. Nd2 {[%emt 0:00:10]} e6 {[%emt 0:00:35]} 5. Nb3 {[%emt 0:00:06]} a6 {[%emt 0:06:00][%cal Oc6c5]} 6. Nf3 {[%emt 0:03:44] B12: Caro-Kann: Advance Variation.} c5 {[%emt 0:05:32][%mdl 64] Decoy} 7. dxc5 {[%emt 0:18:27]} Bxc5 {[%emt 0:00:36]} 8. Nxc5 {[%emt 0:00:29] White is slightly better.} Qa5+ {[%emt 0:00:06]} 9. c3 {[%emt 0:02:17]} Qxc5 {[%emt 0:00:17]} 10. Nd4 {[%emt 0:05:37]} Ne7 {[%emt 0:18:56] [#] Black is weak on the dark squares} 11. h4 $146 {[%emt 0:22:55][%cal Bh2h4,Bh4h5][%mdl 32] g4 would be deadly.} ({Predecessor:} 11. Qa4+ Nbc6 12. Be3 Qa5 13. Qxa5 Nxa5 14. Nxf5 Nxf5 15. Bb6 Nc4 16. Bxc4 dxc4 17. a4 {1-0 So,W (2770)-Abdusattorov,N (2627) Chess.com Speed blitz 2020 (1.11)}) 11... h6 {[%emt 0:10:39]} 12. Be2 {[%emt 0:02:55]} Nd7 {[%emt 0:14:58]} 13. Qa4 {[%emt 0:14:55]} Qc8 {[%emt 0:05:43]} 14. Bf4 {[%emt 0:01:07]} Be4 {[%emt 0:08:27]} 15. h5 {[%emt 0:04:39]} Nc6 {[%emt 0:06:02]} (15... Bxg2 16. Rg1 Be4 17. Rxg7 $16) 16. Rh3 {[%emt 0:02:47]} b5 {[%emt 0:04:33]} ({Resist} 16... Bxg2 17. Rg3 Be4 18. Rxg7 $14) (16... O-O $11) 17. Qa3 $14 {[%emt 0:00:07]} Ncxe5 {[%emt 0:03:16]} (17... Ndxe5 $11 18. Qc5 f6) 18. Rg3 {[%emt 0:14:42]} (18. Re3 $1 $14) 18... g5 {[%emt 0:02:51]} (18... Nc4 $1 $11 {keeps the balance.} 19. Bxc4 dxc4) 19. hxg6 $16 {[%emt 0:01:21]} Nxg6 {[%emt 0:00:18]} 20. Bd6 {[%emt 0:01:19] Hoping for f3. A strong pair of Bishops.} e5 {[%emt 0:01:43]} (20... Nde5 $16) 21. Nf3 $2 {[%emt 0:00:10]} (21. f3 $1 $18 {[%cal Rf3e4]}) 21... Qc6 $15 {[%emt 0:03:19]} 22. Rd1 {[%emt 0:00:25]} (22. Qb4 $11) 22... O-O-O {[%emt 0:01:47]} (22... Rd8 $17) 23. Nd2 $11 {[%emt 0:01:10]} Nf6 $36 {[%emt 0:01:47][%mdl 2048] Black fights for an advantage.} 24. Bc5 {[%emt 0:01:25]} (24. Be7 $11) 24... Rhe8 $17 {[%emt 0:01:25]} (24... Nf4 {looks sharper.} 25. Be7 Bxg2 26. Bxd8 Rxd8 27. b3 Nxe2 28. Kxe2 Nh5) 25. b4 $2 {[%emt 0:00:48]} (25. Rc1 $17 {keeps fighting.}) 25... Bc2 {[%emt 0:00:25]} 26. Rc1 {[%emt 0:00:09]} Ba4 {[%emt 0:00:01]} 27. Qb2 {[%emt 0:00:29]} Nf4 {[%emt 0:00:41]} 28. Rg7 $2 {[%emt 0:00:55]} (28. Be3) 28... Nxe2 {[%emt 0:00:39]} 29. Kxe2 {[%emt 0:00:04]} Qe6 {[%emt 0:00:10] White must now prevent ...Nh5.} 30. Nf3 {[%emt 0:00:29]} Nh5 {[%emt 0:00:23]} 31. Rg3 {[%emt 0:01:12]} Nxg3+ {[%emt 0:00:18]} 32. fxg3 {[%emt 0:00:04]} Qg4 {[%emt 0:00:16][%cal Oe5e4] ...e4! is the strong threat.} 33. Kf2 {[%emt 0:00:39]} Rg8 {[%emt 0:01:02][%cal Be8g8,Bg8g6,Bg6f6][%mdl 32]} 34. Kf1 {[%emt 0:00:49]} Qxg3 {[%emt 0:00:42]} ({Wrong is} 34... e4 $2 35. Nd4 $19) 35. Re1 $2 {[%emt 0:00:14]} (35. Qf2) 35... e4 $19 {[%emt 0:01:02]} 36. Ng1 {[%emt 0:00:53]} Rg6 {[%emt 0:00:48]} 37. Qd2 {[%emt 0:00:31]} (37. Qf2 $142) 37... Rf6+ {[%emt 0:00:49]} 38. Bf2 {[%emt 0:00:22]} Rg8 {[%emt 0:00:37]} 39. Qd4 {[%emt 0:00:18]} Qxg2+ {[%emt 0:00:46]} 40. Ke2 {[%emt 0:00:00]} Qg4+ {[%emt 0:00:00]} 41. Kd2 {[%emt 0:04:11]} Rc6 {[%emt 0:12:28] aiming for ...Qf5.} 42. Ne2 {[%emt 0:01:33] Strongly threatening Rg1.} Qg5+ {[%emt 0:06:31]} 43. Be3 {[%emt 0:01:16]} Qf6 {[%emt 0:00:10]} 44. Qa7 {[%emt 0:00:17] And now Qa8+ would win.} Rg2 $2 {[%emt 0:02:53]} (44... Rg6 $19 {is more deadly. Threatens to win with ...Qe5.} 45. Nd4 Rd6) 45. Qa8+ $17 {[%emt 0:02:41] [#]} Kd7 $1 {[%emt 0:00:53][%csl Gc6][%cal Rf6c3]} 46. Qb7+ {[%emt 0:00:56]} Ke8 {[%emt 0:00:24]} (46... Rc7 $17 {[%csl Gc7][%cal Rf6c3]} 47. Qxd5+ Ke8 48. Qa8+ Kd7 49. Qd5+ Ke8 50. Qa8+ Kd7 51. Qd5+) 47. Qa8+ $11 {[%emt 0:02:21]} Ke7 {[%emt 0:00:28][%csl Gc6][%cal Rf6c3]} 48. Qb7+ $1 {[%emt 0:01:48]} Kd8 {[%emt 0:03:07][%csl Gc6][%cal Rf6c3,Be7d8,Bd8e8,Be8d7,Bd7c8,Bc8b7][%mdl 32]} ({Reject} 48... Kf8 $6 49. Qb8+ Ke7 50. Qb7+ Kd8 51. Qb8+ Kd7 52. Qb7+ Rc7 53. Qxd5+ Ke7 54. Qxe4+ Qe6 55. Bc5+ Rxc5 56. Qxe6+ Kxe6 57. bxc5 $17) 49. Qa8+ $2 {[%emt 0:03:50][%mdl 8192] [#] White is now going downhill.} (49. Qb8+ $1 $11 Kd7 50. Qb7+ Ke8 51. Qa8+ Ke7 52. Qb7+ Kd8 53. Qb8+ Ke7 54. Qb7+) 49... Rc8 $1 $19 {[%emt 0:03:08][%csl Gc8][%cal Rf6c3]} 50. Qxd5+ {[%emt 0:01:17]} Ke8 {[%emt 0:00:05][%csl Gc8][%cal Rf6c3]} 51. Qxe4+ {[%emt 0:03:26]} Qe6 {[%emt 0:00:03]} 52. Qxg2 {[%emt 0:06:35]} (52. Qxe6+ $19 fxe6 53. Bd4) 52... Qxa2+ {[%emt 0:00:06] Black mates.} 53. Kd3 {[%emt 0:00:03]} Bc2+ {[%emt 0:00:06]} 54. Kd4 {[%emt 0:00:04]} Qe6 {[%emt 0:00:12][%csl Gb5,Ge6][%cal Rc8c4]} 55. Qg8+ {[%emt 0:04:01]} Kd7 {[%emt 0:00:07][%csl Gb5,Ge6][%cal Rc8c4]} 56. Qxc8+ {[%emt 0:00:53]} Kxc8 {[%emt 0:00:01][%cal Re6d6]} 57. Bf4 {[%emt 0:02:24]} Qe4+ {[%emt 0:04:10]} 58. Kc5 {[%emt 0:00:13]} Kb7 {[%emt 0:00:51]} 59. Bg3 {[%emt 0:00:36]} Qc4+ {[%emt 0:01:44]} 60. Kd6 {[%emt 0:00:06]} Qe6+ {[%emt 0:00:17]} 61. Kc5 {[%emt 0:00:08]} Qe3+ {[%emt 0:00:42]} 62. Nd4 {[%emt 0:02:46]} Qxc3+ {[%emt 0:00:17]} 63. Kd5 {[%emt 0:00:16]} Bb3+ {[%emt 0:00:26] An interesting game.   Weighted Error Value: White=0.76/Black=0.68} 0-1